Workbook

Sheet CONTENTS
D1: DATA COLLECTION TEMPLATE
D2: Basslink Pty Ltd
E6: CONTENTS
E8: TEMPLATE
E10: SUBMISSION | F10: Business & other details
E12: EXPENDITURE | F12: 2.1 Expenditure Summary
F13: 2.3c Material Projects
F14: 2.6 Non-network
F15: 2.14 Forecast price changes
F16: 2.16 Opex
F17: 2.17 Step Changes
E19: ECONOMIC BENCHMARKING | F19: 3.2.3 Provisions
E21: OTHER | F21: 7.1 Policies and Procedures
F22: 7.2 Contingent projects
F23: 7.3 Obligations
F24: 7.4 Shared Assets
F25: 7.9 STPIS
F26: 8.2 Capex

Sheet Business & other details
V1: DATA COLLECTION TEMPLATE
V2: Basslink Pty Ltd
V4: BUSINESS & OTHER DETAILS
V6: INSTRUCTIONS
V7: Complete the following business details regulatory template before entering data or values in any other regulatory template. This regulatory template is linked to other cells within the spreadsheet and automatically generates column headings and conditional formatting to distinguish business specific input and non-input cells.
Q9: SUBMISSION PARTICULARS INPUT SHEET
V12: ENTITY DETAILS
V14: Business Name
V16: Short name | AL16: Basslink
V17: ACN/ABN | AL17: 52 090 996 231
V21: Business Address | BQ21: Postal Address
V23: Address 1 | AL23: Level 25 | BI23: Address 1 | BQ23: PO Box R41
V24: Address 2 | AL24: 580 George Street | BI24: Address 2
V25: Suburb | AL25: SYDNEY | BI25: Suburb | BQ25: ROYAL EXCHANGE
V26: State | AL26: NSW | AV26: Post code | BI26: State | BQ26: NSW | CA26: Post code
BA28: `
V30: Contact Names
V32: Name | BI32: Name
V33: Phone | BI33: Phone
V34: Email | BI34: Email
Q39: REGULATORY CONTROL PERIODS
Z42: Forthcoming period | AL42: 2025-26 | AU42: 2026-27 | BD42: 2027-28 | BM42: 2028-29 | BV42: 2029-30
X46: RESETS | Z46: Current period | AL46: 2020-21 | AU46: 2021-22 | BD46: 2022-23 | BM46: 2023-24 | BV46: 2024-25
Z50: Previous period | AL50: 2015-16 | AU50: 2016-17 | BD50: 2017-18 | BM50: 2018-19 | BV50: 2019-20
Z54: Commencing year | AL54: 2001-02
X55: ANNUAL RINS
Z56: Final year | AL56: 2029-30
Q60: SUBMISSION DETAILS
Z62: RIN type | AL62: Regulatory Reporting (Reset)
Z64: Source | AL64: Regulatory proposal
X66: THIS FILE | Z66: Data Quality | AL66: Consolidated
Z68: Confidentiality Status | AL68: Public
Z70: Amended RIN Amendment Reason | AL70: .
Z74: Submission Date | AL74: dd/mm/yy | BD74: Please enter date this file submitted to AER

Sheet 2.1 Expenditure Summary
B1: DATA COLLECTION TEMPLATE
B2: Basslink Pty Ltd
B4: 2.1 - EXPENDITURE SUMMARY
B6: 2.1.1 - PRESCRIBED TRANSMISSION SERVICES CAPEX (as incurred)
D7: EXPENDITURE
D8: ($, nominal) | Z8: Forecast ($, real June 2025)
C9: 2000-01 | D9: 2001-02 | E9: 2002-03 | F9: 2003-04 | G9: 2004-05 | H9: 2005-06 | I9: 2006-07 | J9: 2007-08 | K9: 2008-09 | L9: 2009-10 | M9: 2010-11 | N9: 2011-12 | O9: 2012-13 | P9: 2013-14 | Q9: 2014-15 | R9: 2015-16 | S9: 2016-17 | T9: 2017-18 | U9: 2018-19 | V9: 2019-20 | W9: 2020-21 | X9: 2021-22 | Y9: 2022-23 | Z9: 2023-24 | AA9: 2024-25 | AB9: 2025-26 | AC9: 2026-27 | AD9: 2027-28 | AE9: 2028-29 | AF9: 2029-30
B10: Replacement expenditure | I10: 178040.9 | J10: 522783.2 | K10: 143884.27 | L10: 738451.86 | M10: 525369 | N10: 1531255 | O10: 4850 | P10: 980472.68 | Q10: 27400 | R10: 0 | S10: 0 | T10: 96831.85 | U10: 6487817.11 | V10: 1242013.58 | W10: 4643346.22 | X10: 5228671.75 | Y10: 2628652.98 | AB10: 14987705.8 | AC10: 7427441.883 | AD10: 3233840.273 | AE10: 9750145.71 | AF10: 29299066.33
B11: Connections | AB11: 0 | AC11: 0 | AD11: 0 | AE11: 0 | AF11: 0
B12: Augmentation Expenditure | C12: 8168680.866 | D12: 17129331.26 | E12: 128304250.9 | F12: 132374919.1 | G12: 335317211 | H12: 159438301 | AB12: 0 | AC12: 0 | AD12: 0 | AE12: 0 | AF12: 0
B13: Non-network | I13: =SUM('2.6 Non-network'!I17:I20) -> 55376.22 | J13: =SUM('2.6 Non-network'!J17:J20) -> 14357 | K13: =SUM('2.6 Non-network'!K17:K20) -> 1144 | L13: =SUM('2.6 Non-network'!L17:L20) -> 0 | M13: =SUM('2.6 Non-network'!M17:M20) -> 0 | N13: =SUM('2.6 Non-network'!N17:N20) -> 0 | O13: =SUM('2.6 Non-network'!O17:O20) -> 0 | P13: =SUM('2.6 Non-network'!P17:P20) -> 0 | Q13: =SUM('2.6 Non-network'!Q17:Q20) -> 0 | R13: =SUM('2.6 Non-network'!R17:R20) -> 0 | S13: =SUM('2.6 Non-network'!S17:S20) -> 42411.9 | T13: =SUM('2.6 Non-network'!T17:T20) -> 0 | U13: =SUM('2.6 Non-network'!U17:U20) -> 31871.67 | V13: =SUM('2.6 Non-network'!V17:V20) -> 253439.9 | W13: =SUM('2.6 Non-network'!W17:W20) -> 55361.64 | X13: =SUM('2.6 Non-network'!X17:X20) -> 0 | Y13: =SUM('2.6 Non-network'!Y17:Y20) -> 4517101.764 | AB13: 3501409.28 | AC13: 2899657.793 | AD13: 841361.1116 | AE13: 1151464.309 | AF13: 992972.2965
B14: Capitalised network overheads | AB14: 0 | AC14: 0 | AD14: 0 | AE14: 0 | AF14: 0
B15: Capitalised corporate overheads | AB15: 0 | AC15: 0 | AD15: 0 | AE15: 0 | AF15: 0
B16: TOTAL CAPEX | C16: =SUM(C10:C15) -> 8168680.866 | D16: =SUM(D10:D15) -> 17129331.26 | E16: =SUM(E10:E15) -> 128304250.9 | F16: =SUM(F10:F15) -> 132374919.1 | G16: 335317211 | H16: 159438301 | I16: 233417.12 | J16: 537140.2 | K16: 145028.27 | L16: 738451.86 | M16: 525369 | N16: 1531255 | O16: 4850 | P16: 980472.68 | Q16: 27400 | R16: 0 | S16: 42411.9 | T16: 96831.85 | U16: 6519688.78 | V16: 1495453.48 | W16: 4698707.86 | X16: 5228671.75 | Y16: =SUM(Y10:Y15) -> 7145754.744 | Z16: =SUM(Z10:Z15) -> 0 | AA16: =SUM(AA10:AA15) -> 0 | AB16: =SUM(AB10:AB15) -> 18489115.07 | AC16: 10327099.68 | AD16: 4075201.385 | AE16: 10901610.02 | AF16: 30292038.63
B18: Check to Capex per RCM | C18: 0 | D18: 0 | E18: 0 | F18: 0 | G18: 0 | H18: 0 | I18: 0 | J18: 0 | K18: 0 | L18: 0 | M18: 0 | N18: 0 | O18: 0 | P18: 0 | Q18: 0 | R18: 0 | S18: 0 | T18: 0 | U18: 0 | V18: 0 | W18: 0 | X18: 0 | Y18: 0

Sheet 2.3c Material Projects
B1: DATA COLLECTION TEMPLATE
B2: Basslink Pty Ltd
B4: 2.3c MATERIAL PROJECTS
B6: Instructions
B7: Enter information for material projects only in the tables below.
B9: 2.3c.1 - PROJECTS IN THE FORTHCOMING PERIOD
B11: ONGOING AND FUTURE PROJECTS
B12: Unique identifier | C12: Project name | D12: Description of project | E12: Proposed start date | F12: Proposed commissioning date | G12: Location | H12: Business case approval | I12: Business case approval date | J12: Primary expenditure purpose category | L12: Forecast yearly expenditure - forthcoming period, $real June 2025 | Q12: Total
L13: 2025-26 | M13: 2026-27 | N13: 2027-28 | O13: 2028-29 | P13: 2029-30
B14: Include unique identifier for each project | D14: Provide a brief description of the project stating (where required) whether the regulatory test was satisfied, reference the appropriate documentation and where the regulatory test is yet to be satisfied the estimated timeframe for this to be achieved. | E14: Identify month and year | F14: Identify month and year | G14: Identify location if only one site, if several, e.g. pole replacement, insert 'various'. | H14: Reference the appropriate documentation supporting approval for the project. Where the business case is yet to be approved provide the estimated timeframe for this to be achieved. | I14: Identify month and year of the business case approval (if relevant) | J14: State the primary expenditure purpose category regarding this project. | L14: Include the anticipated or known expenditure of the project by expenditure purpose.
C15: Control and Protection System | D15: Replacement of the Basslink Control and Protection System | G15: Network wide | H15: Basslink - Attachment 7.2 - Control Protection System Business Case.docx | J15: Replacement | K15: Capital expenditure | L15: 7.879504719 | M15: 6.351220501 | N15: 3.062727115 | O15: 8.457464759 | P15: 18.42566191 | Q15: =SUM(L15:P15) -> 44.176579
K16: Operating expenditure | Q16: 0
K17: Maintenance expenditure | Q17: 0
K18: Total | L18: 0 | M18: 0 | N18: 0 | O18: 0 | P18: 0 | Q18: 0
K19: Capital expenditure | Q19: 0
K20: Operating expenditure | Q20: 0
K21: Maintenance expenditure | Q21: 0
K22: Total | L22: 0 | M22: 0 | N22: 0 | O22: 0 | P22: 0 | Q22: 0
K23: Capital expenditure | Q23: 0
K24: Operating expenditure | Q24: 0
K25: Maintenance expenditure | Q25: 0
K26: Total | L26: 0 | M26: 0 | N26: 0 | O26: 0 | P26: 0 | Q26: 0
K27: Capital expenditure | Q27: 0
K28: Operating expenditure | Q28: 0
K29: Maintenance expenditure | Q29: 0
K30: Total | L30: 0 | M30: 0 | N30: 0 | O30: 0 | P30: 0 | Q30: 0
K31: Capital expenditure | Q31: 0
K32: Operating expenditure | Q32: 0
K33: Maintenance expenditure | Q33: 0
K34: Total | L34: 0 | M34: 0 | N34: 0 | O34: 0 | P34: 0 | Q34: 0
K35: Capital expenditure | Q35: 0
K36: Operating expenditure | Q36: 0
K37: Maintenance expenditure | Q37: 0
K38: Total | L38: 0 | M38: 0 | N38: 0 | O38: 0 | P38: 0 | Q38: 0
K39: Capital expenditure | Q39: 0
K40: Operating expenditure | Q40: 0
K41: Maintenance expenditure | Q41: 0
K42: Total | L42: 0 | M42: 0 | N42: 0 | O42: 0 | P42: 0 | Q42: 0
K43: Capital expenditure | Q43: 0
K44: Operating expenditure | Q44: 0
K45: Maintenance expenditure | Q45: 0
K46: Total | L46: 0 | M46: 0 | N46: 0 | O46: 0 | P46: 0 | Q46: 0
K47: Capital expenditure | Q47: 0
K48: Operating expenditure | Q48: 0
K49: Maintenance expenditure | Q49: 0
K50: Total | L50: 0 | M50: 0 | N50: 0 | O50: 0 | P50: 0 | Q50: 0
K51: Capital expenditure | Q51: 0
K52: Operating expenditure | Q52: 0
K53: Maintenance expenditure | Q53: 0
K54: Total | L54: 0 | M54: 0 | N54: 0 | O54: 0 | P54: 0 | Q54: 0
K55: Total | L55: 0 | M55: 0 | N55: 0 | O55: 0 | P55: 0 | Q55: 0
B59: 2.3c.2 - PROJECTS IN PREVIOUS YEARS
B60: HISTORICAL PROJECTS
L61: Yearly expenditure - current regulatory control period (nominal $'0s) | AH61: Total
B62: Unique identifier | C62: Project name | D62: Description of project | E62: Proposed start date | F62: Proposed commissioning date | G62: Location | H62: Business case approval | I62: Business case approval date | J62: Primary expenditure purpose category | L62: 2001-02 | M62: 2002-03 | N62: 2003-04 | O62: 2004-05 | P62: 2005-06 | Q62: 2006-07 | R62: 2007-08 | S62: 2008-09 | T62: 2009-10 | U62: 2010-11 | V62: 2011-12 | W62: 2012-13 | X62: 2013-14 | Y62: 2014-15 | Z62: 2015-16 | AA62: 2016-17 | AB62: 2017-18 | AC62: 2018-19 | AD62: 2019-20 | AE62: 2020-21 | AF62: 2021-22 | AG62: 2022-23 | AH62: Total
B63: Include unique identifier for each project | D63: Provide a brief description of the project stating (where required) whether the regulatory test was satisfied, reference the appropriate documentation and where the regulatory test is yet to be satisfied the estimated timeframe for this to be achieved. | E63: Identify month and year | F63: Identify month and year | G63: Identify location if only one site, if several, e.g. pole replacement, insert 'various'. | H63: Reference the appropriate documentation supporting approval for the project. Where the business case is yet to be approved provide the estimated timeframe for this to be achieved. | I63: Identify month and year of the business case approval (if relevant) | J63: State the primary expenditure purpose category regarding this project. | L63: Include approved expenditure of the project as at time of business case approval.
K64: Capital expenditure | AH64: 0
K65: Operating expenditure | AH65: 0
K66: Maintenance expenditure | AH66: 0
K67: Total | L67: 0 | AH67: 0
K68: Capital expenditure | AH68: 0
K69: Operating expenditure | AH69: 0
K70: Maintenance expenditure | AH70: 0
K71: Total | L71: 0 | AH71: 0
K72: Capital expenditure | AH72: 0
K73: Operating expenditure | AH73: 0
K74: Maintenance expenditure | AH74: 0
K75: Total | L75: 0 | AH75: 0
K76: Capital expenditure | AH76: 0
K77: Operating expenditure | AH77: 0
K78: Maintenance expenditure | AH78: 0
K79: Total | L79: 0 | AH79: 0
K80: Capital expenditure | AH80: 0
K81: Operating expenditure | AH81: 0
K82: Maintenance expenditure | AH82: 0
K83: Total | L83: 0 | AH83: 0
K84: Capital expenditure | AH84: 0
K85: Operating expenditure | AH85: 0
K86: Maintenance expenditure | AH86: 0
K87: Total | L87: 0 | AH87: 0
K88: Capital expenditure | AH88: 0
K89: Operating expenditure | AH89: 0
K90: Maintenance expenditure | AH90: 0
K91: Total | L91: 0 | AH91: 0
K92: Capital expenditure | AH92: 0
K93: Operating expenditure | AH93: 0
K94: Maintenance expenditure | AH94: 0
K95: Total | L95: 0 | AH95: 0
K96: Capital expenditure | AH96: 0
K97: Operating expenditure | AH97: 0
K98: Maintenance expenditure | AH98: 0
K99: Total | L99: 0 | AH99: 0
K100: Capital expenditure | AH100: 0
K101: Operating expenditure | AH101: 0
K102: Maintenance expenditure | AH102: 0
K103: Total | L103: 0 | AH103: 0
K104: Total | L104: 0 | AH104: 0

Sheet 2.6 Non-network
B1: DATA COLLECTION TEMPLATE
B2: Basslink Pty Ltd
B4: 2.6 NON NETWORK EXPENDITURE
B7: 2.6.1 - NON-NETWORK EXPENDITURE
D8: EXPENDITURE
D9: ($, nominal) | Z9: Forecast ($, real June 2025)
C10: 2000-01 | D10: 2001-02 | E10: 2002-03 | F10: 2003-04 | G10: 2004-05 | H10: 2005-06 | I10: 2006-07 | J10: 2007-08 | K10: 2008-09 | L10: 2009-10 | M10: 2010-11 | N10: 2011-12 | O10: 2012-13 | P10: 2013-14 | Q10: 2014-15 | R10: 2015-16 | S10: 2016-17 | T10: 2017-18 | U10: 2018-19 | V10: 2019-20 | W10: 2020-21 | X10: 2021-22 | Y10: 2022-23 | Z10: 2023-24 | AA10: 2024-25 | AB10: 2025-26 | AC10: 2026-27 | AD10: 2027-28 | AE10: 2028-29 | AF10: 2029-30
B11: OPEX
B12: Total IT & communications | C12: 0 | D12: 0 | E12: 0 | F12: 0 | G12: 0 | H12: 12140.83 | I12: 280028.21 | J12: 261884.81 | K12: 279371.91 | L12: 314988.36 | M12: 330390.96 | N12: 203491.39 | O12: 172378.64 | P12: 164837.59 | Q12: 148085.78 | R12: 146131.77 | S12: 167453.4 | T12: 225832.75 | U12: 290186.43 | V12: 250570.07 | W12: 282983.16 | X12: 356267.01 | Y12: 542394.45 | Z12: 1574646.083 | AA12: 2345493.151 | AB12: 3639149.35 | AC12: 3887187.287 | AD12: 4480768.65 | AE12: 5183898.492 | AF12: 6506840.533
B13: Total motor vehicle expenditure | C13: 0 | D13: 0 | E13: 0 | F13: 0 | G13: 0 | H13: 936.91 | I13: 20597.39 | J13: 9925.31 | K13: 8801.36 | L13: 25161.02 | M13: 18839.53 | N13: 8884.83 | O13: 22316.66 | P13: 22731.37 | Q13: 18174.49 | R13: 14905.7 | S13: 20548.17 | T13: 22262.34 | U13: 20144.56 | V13: 24298.11 | W13: 15339.07 | X13: 21219.42 | Y13: 36469 | Z13: 1068720.633 | AA13: 1839567.701 | AB13: 21219.42 | AC13: 21219.42 | AD13: 21219.42 | AE13: 21219.42 | AF13: 21219.42
B14: Total buildings and property expenditure | C14: 0 | D14: 0 | E14: 0 | F14: 0 | G14: 0 | H14: 18350.65 | I14: 134175.87 | J14: 148914.19 | K14: 151545.91 | L14: 159006.6663 | M14: 134493.8313 | N14: 129265.7433 | O14: 136851.774 | P14: 141204.3275 | Q14: 148926.9207 | R14: 160059.9406 | S14: 168466.6953 | T14: 118632.7537 | U14: 97823.77047 | V14: -6632.941205 | W14: 26576.18565 | X14: 23725.05536 | Y14: 450825.09 | Z14: 1483076.723 | AA14: 2253923.791 | AB14: 23725.05536 | AC14: 23725.05536 | AD14: 23725.05536 | AE14: 23725.05536 | AF14: 23725.05536
B15: Total other | C15: 0 | D15: 0 | E15: 0 | F15: 0 | G15: 911000 | H15: 581516.65 | I15: 2769729.08 | J15: 1678175.21 | K15: 4716295.24 | L15: 1332241.16 | M15: 1916191.82 | N15: 4180872.71 | O15: 2589245.17 | P15: 7141430.17 | Q15: 8938394.75 | R15: 714899.91 | S15: 750640.69 | T15: 1024014.59 | U15: 899715.09 | V15: 21838635.35 | W15: 106469518.7 | X15: 2052452.38 | Y15: 2793446.208 | Z15: 3825697.842 | AA15: 4596544.91 | AB15: 4933237.545 | AC15: 4954731.001 | AD15: 4972710.099 | AE15: 4996441.917 | AF15: 5023516.638
B16: CAPEX
B17: Total IT & communications | C17: 0 | D17: 0 | E17: 0 | F17: 0 | G17: 0 | H17: 0 | I17: 0 | J17: 0 | K17: 0 | L17: 0 | M17: 0 | N17: 0 | O17: 0 | P17: 0 | Q17: 0 | R17: 0 | S17: 0 | T17: 0 | U17: 0 | V17: 0 | W17: 0 | X17: 0 | Y17: 0 | AB17: 1752049.319 | AC17: 1150297.832 | AD17: 841361.1116 | AE17: 1151464.309 | AF17: 992972.2965
B18: Total motor vehicle expenditure | C18: 0 | D18: 0 | E18: 0 | F18: 0 | G18: 0 | H18: 0 | I18: 0 | J18: 0 | K18: 0 | L18: 0 | M18: 0 | N18: 0 | O18: 0 | P18: 0 | Q18: 0 | R18: 0 | S18: 42411.9 | T18: 0 | U18: 31871.67 | V18: 253439.9 | W18: 55361.64 | X18: 0 | Y18: 110553.1981 | AB18: 0 | AC18: 0 | AD18: 0 | AE18: 0 | AF18: 0
B19: Total buildings and property expenditure | C19: 0 | D19: 0 | E19: 0 | F19: 0 | G19: 0 | H19: 0 | I19: 55376.22 | J19: 14357 | K19: 1144 | L19: 0 | M19: 0 | N19: 0 | O19: 0 | P19: 0 | Q19: 0 | R19: 0 | S19: 0 | T19: 0 | U19: 0 | V19: 0 | W19: 0 | X19: 0 | Y19: 0 | AB19: 1749359.96 | AC19: 1749359.96 | AD19: 0 | AE19: 0 | AF19: 0
B20: Total other | C20: 0 | D20: 0 | E20: 0 | F20: 0 | G20: 0 | H20: 0 | I20: 0 | J20: 0 | K20: 0 | L20: 0 | M20: 0 | N20: 0 | O20: 0 | P20: 0 | Q20: 0 | R20: 0 | S20: 0 | T20: 0 | U20: 0 | V20: 0 | W20: 0 | X20: 0 | Y20: 4406548.566 | AB20: 0 | AC20: 0 | AD20: 0 | AE20: 0 | AF20: 0
B22: Check - Opex - Total - 2.16 | G22: ='2.16 Opex Summary'!F30-SUM(G12:G15) -> 0 | H22: ='2.16 Opex Summary'!G30-SUM(H12:H15) -> 0 | I22: ='2.16 Opex Summary'!H30-SUM(I12:I15) -> 0 | J22: ='2.16 Opex Summary'!I30-SUM(J12:J15) -> 0 | K22: ='2.16 Opex Summary'!J30-SUM(K12:K15) -> 0 | L22: ='2.16 Opex Summary'!K30-SUM(L12:L15) -> 0 | M22: ='2.16 Opex Summary'!L30-SUM(M12:M15) -> 0 | N22: ='2.16 Opex Summary'!M30-SUM(N12:N15) -> 0 | O22: ='2.16 Opex Summary'!N30-SUM(O12:O15) -> 0 | P22: ='2.16 Opex Summary'!O30-SUM(P12:P15) -> 0 | Q22: ='2.16 Opex Summary'!P30-SUM(Q12:Q15) -> 0 | R22: ='2.16 Opex Summary'!Q30-SUM(R12:R15) -> 0 | S22: ='2.16 Opex Summary'!R30-SUM(S12:S15) -> 0 | T22: ='2.16 Opex Summary'!S30-SUM(T12:T15) -> 0 | U22: ='2.16 Opex Summary'!T30-SUM(U12:U15) -> 0 | V22: ='2.16 Opex Summary'!U30-SUM(V12:V15) -> 0 | W22: ='2.16 Opex Summary'!V30-SUM(W12:W15) -> 0 | X22: ='2.16 Opex Summary'!W30-SUM(X12:X15) -> 0 | Y22: ='2.16 Opex Summary'!X30-SUM(Y12:Y15) -> 0
B23: Check - Capex - Total - 2.16 | I23: ='2.1 Expenditure Summary'!I13-SUM('2.6 Non-network'!I17:I20) -> 0 | J23: ='2.1 Expenditure Summary'!J13-SUM('2.6 Non-network'!J17:J20) -> 0 | K23: ='2.1 Expenditure Summary'!K13-SUM('2.6 Non-network'!K17:K20) -> 0 | L23: ='2.1 Expenditure Summary'!L13-SUM('2.6 Non-network'!L17:L20) -> 0 | M23: ='2.1 Expenditure Summary'!M13-SUM('2.6 Non-network'!M17:M20) -> 0 | N23: ='2.1 Expenditure Summary'!N13-SUM('2.6 Non-network'!N17:N20) -> 0 | O23: ='2.1 Expenditure Summary'!O13-SUM('2.6 Non-network'!O17:O20) -> 0 | P23: ='2.1 Expenditure Summary'!P13-SUM('2.6 Non-network'!P17:P20) -> 0 | Q23: ='2.1 Expenditure Summary'!Q13-SUM('2.6 Non-network'!Q17:Q20) -> 0 | R23: ='2.1 Expenditure Summary'!R13-SUM('2.6 Non-network'!R17:R20) -> 0 | S23: ='2.1 Expenditure Summary'!S13-SUM('2.6 Non-network'!S17:S20) -> 0 | T23: ='2.1 Expenditure Summary'!T13-SUM('2.6 Non-network'!T17:T20) -> 0 | U23: ='2.1 Expenditure Summary'!U13-SUM('2.6 Non-network'!U17:U20) -> 0 | V23: ='2.1 Expenditure Summary'!V13-SUM('2.6 Non-network'!V17:V20) -> 0 | W23: ='2.1 Expenditure Summary'!W13-SUM('2.6 Non-network'!W17:W20) -> 0 | X23: ='2.1 Expenditure Summary'!X13-SUM('2.6 Non-network'!X17:X20) -> 0 | Y23: ='2.1 Expenditure Summary'!Y13-SUM('2.6 Non-network'!Y17:Y20) -> 0 | Z23: ='2.1 Expenditure Summary'!Z13-SUM('2.6 Non-network'!Z17:Z20) -> 0 | AA23: ='2.1 Expenditure Summary'!AA13-SUM('2.6 Non-network'!AA17:AA20) -> 0 | AB23: ='2.1 Expenditure Summary'!AB13-SUM('2.6 Non-network'!AB17:AB20) -> 0 | AC23: ='2.1 Expenditure Summary'!AC13-SUM('2.6 Non-network'!AC17:AC20) -> 0 | AD23: ='2.1 Expenditure Summary'!AD13-SUM('2.6 Non-network'!AD17:AD20) -> 0 | AE23: ='2.1 Expenditure Summary'!AE13-SUM('2.6 Non-network'!AE17:AE20) -> 0 | AF23: ='2.1 Expenditure Summary'!AF13-SUM('2.6 Non-network'!AF17:AF20) -> 0

Sheet 2.14 Forecast price changes
B1: DATA COLLECTION TEMPLATE
B2: Basslink Pty Ltd
B4: 2.14 FORECAST PRICE CHANGES
B6: 2.14.1 - FORECAST LABOUR AND MATERIALS PRICE CHANGES
C7: Price changes (% YoY real) Historical | AA7: Price changes (%YoY real) Forthcoming regulatory period
C8: ($, nominal) | Y8: Forecast ($, real June 2025)
C9: 2001-02 | D9: 2002-03 | E9: 2003-04 | F9: 2004-05 | G9: 2005-06 | H9: 2006-07 | I9: 2007-08 | J9: 2008-09 | K9: 2009-10 | L9: 2010-11 | M9: 2011-12 | N9: 2012-13 | O9: 2013-14 | P9: 2014-15 | Q9: 2015-16 | R9: 2016-17 | S9: 2017-18 | T9: 2018-19 | U9: 2019-20 | V9: 2020-21 | W9: 2021-22 | X9: 2022-23 | Y9: 2023-24 | Z9: 2024-25 | AA9: 2025-26 | AB9: 2026-27 | AC9: 2027-28 | AD9: 2028-29 | AE9: 2029-30
B10: Materials price changes
B41: Labour and Other price changes
B42: Labour escalator | AA42: 0.008745602161 | AB42: 0.007608599802 | AC42: 0.006409732637 | AD42: 0.008142815961 | AE42: 0.009190733624
B57: CPI

Sheet 2.16 Opex Summary
B1: DATA COLLECTION TEMPLATE
B2: Basslink Pty Ltd
B4: 2.16 OPEX SUMMARY
J6: IMPORTANT!
J7: Has Basslink used a base-step-trend model to derive its opex forecast? | L7: Yes
J8: Yes / No
J9: Please nominate the base year. | L9: 2021-22
B11: 2.16.1 - PRESCRIBED TRANSMISSION SERVICES - OPEX BY DRIVER
C12: Forecast ($, real June 2025)
C13: 2020-21 | D13: 2021-22 | E13: 2022-23 | F13: 2023-24 | G13: 2024-25 | H13: 2025-26 | I13: 2026-27 | J13: 2027-28 | K13: 2028-29 | L13: 2029-30
B14: Base year total opex, excluding category specific
B15: Increment from base year to final year
B16: Price growth
B17: Output growth
B18: Productivity growth
B19: Step changes
B20: Category specific
B21: Total opex | C21: 0 | D21: 0 | E21: 0 | F21: 0 | G21: 0 | H21: 0 | I21: 0 | J21: 0 | K21: 0 | L21: 0
B25: 2.16.2 - PRESCRIBED TRANSMISSION SERVICES - OPEX BY CATEGORY
C26: ($, nominal) | Y26: Forecast ($, real June 2025)
C27: 2001-02 | D27: 2002-03 | E27: 2003-04 | F27: 2004-05 | G27: 2005-06 | H27: 2006-07 | I27: 2007-08 | J27: 2008-09 | K27: 2009-10 | L27: 2010-11 | M27: 2011-12 | N27: 2012-13 | O27: 2013-14 | P27: 2014-15 | Q27: 2015-16 | R27: 2016-17 | S27: 2017-18 | T27: 2018-19 | U27: 2019-20 | V27: 2020-21 | W27: 2021-22 | X27: 2022-23 | Y27: 2023-24 | Z27: 2024-25 | AA27: 2025-26 | AB27: 2026-27 | AC27: 2027-28 | AD27: 2028-29 | AE27: 2029-30
B28: Network operations and maintenance | C28: 0 | D28: 0 | E28: 0 | F28: 0 | G28: 242371.1 | H28: 2090676.26 | I28: 2742368.94 | J28: 4503121.47 | K28: 2362455.22 | L28: 4165770.17 | M28: 2713884.1 | N28: 2471941.82 | O28: 3161734.74 | P28: 2818376.04 | Q28: 3014361.21 | R28: 2817833.76 | S28: 2475770.15 | T28: 1588144.11 | U28: 3728005.68 | V28: 2992135.53 | W28: 3750174.46 | X28: 3717555.3 | Y28: 3717555.3 | Z28: 11371265.11 | AA28: 11255873.24 | AB28: 11283144.93 | AC28: 11306272.04 | AD28: 7509021.576 | AE28: 3715869.519
B29: Employment | C29: 0 | D29: 0 | E29: 0 | F29: 0 | G29: 759349.86 | H29: 3462325.58 | I29: 1699699.63 | J29: 2026239.63 | K29: 2315127.248 | L29: 2498208.068 | M29: 2385048.716 | N29: 2371171.14 | O29: 2693520.203 | P29: 2415582.595 | Q29: 2649876.976 | R29: 2807788.94 | S29: 2728882.931 | T29: 2867068.242 | U29: 3900818.366 | V29: 4822092.673 | W29: 4176488.899 | X29: 6005661.73 | Y29: 5340991.883 | Z29: 4676322.037 | AA29: 4011652.191 | AB29: 4042024.085 | AC29: 4067780.253 | AD29: 4100750.081 | AE29: 4138284.221
B30: General and administration | C30: 0 | D30: 0 | E30: 0 | F30: 911000 | G30: 612945.04 | H30: 3204530.55 | I30: 2098899.52 | J30: 5156014.42 | K30: 1831397.206 | L30: 2399916.141 | M30: 4522514.673 | N30: 2920792.244 | O30: 7470203.457 | P30: 9253581.941 | Q30: 1035997.321 | R30: 1107108.955 | S30: 1390742.434 | T30: 1307869.85 | U30: 22106870.59 | V30: 106794417.1 | W30: 2453663.865 | X30: 3823134.748 | Y30: 5388920.075 | Z30: 6954705.401 | AA30: 8520490.727 | AB30: 8621737.998 | AC30: 8216178.429 | AD30: 8191562.611 | AE30: 8269974.272
B31: Insurance | C31: 0 | D31: 0 | E31: 0 | F31: 0 | G31: 12496032.01 | H31: 1202254.72 | I31: 6375169.04 | J31: 356203.37 | K31: 1175819.56 | L31: 1089403.38 | M31: 2234462.83 | N31: 3339128.47 | O31: 3201804.59 | P31: 2899921.019 | Q31: 2687393.289 | R31: 2657323.53 | S31: 7309169.19 | T31: 9586731.731 | U31: 8526874.21 | V31: 9808634.29 | W31: 11258398.45 | X31: 12730113.97 | Y31: 12153994.92 | Z31: 11577875.87 | AA31: 11001756.82 | AB31: 11591004.69 | AC31: 11929783.79 | AD31: 12252486.44 | AE31: 12517360.2
B57: Total opex | C57: =SUM(C28:C56) -> 0 | D57: 0 | E57: 0 | F57: 911000 | G57: 14110698.01 | H57: 9959787.11 | I57: 12916137.13 | J57: 12041578.89 | K57: 7684799.234 | L57: 10153297.76 | M57: 11855910.32 | N57: 11103033.67 | O57: 16527262.99 | P57: 17387461.59 | Q57: 9387628.795 | R57: 9390055.185 | S57: 13904564.7 | T57: 15349813.93 | U57: 38262568.84 | V57: =SUM(V28:V56) -> 124417279.6 | W57: =SUM(W28:W56) -> 21638725.67 | X57: =SUM(X28:X56) -> 26276465.75 | Y57: =SUM(Y28:Y56) -> 26601462.18 | Z57: 34580168.42 | AA57: =SUM(AA28:AA56) -> 34789772.98 | AB57: =SUM(AB28:AB56) -> 35537911.71 | AC57: 35520014.52 | AD57: 32053820.71 | AE57: 28641488.21
B58: Check to Capex per RCM | F58: 0 | G58: 0 | H58: 0 | I58: 0 | J58: 0 | K58: 0 | L58: 0 | M58: 0 | N58: 0 | O58: 0 | P58: 0 | Q58: 0 | R58: 0 | S58: 0 | T58: 0 | U58: 0 | V58: 0 | W58: 0
B61: 2.16.3 - CATEGORY SPECIFIC OPEX USED IN BASE-STEP-TREND MODEL
C62: EXPENDITURE
C63: ($, nominal) | Y63: Forecast ($, real June 2025)
C64: 2001-02 | D64: 2002-03 | E64: 2003-04 | F64: 2004-05 | G64: 2005-06 | H64: 2006-07 | I64: 2007-08 | J64: 2008-09 | K64: 2009-10 | L64: 2010-11 | M64: 2011-12 | N64: 2012-13 | O64: 2013-14 | P64: 2014-15 | Q64: 2015-16 | R64: 2016-17 | S64: 2017-18 | T64: 2018-19 | U64: 2019-20 | V64: 2020-21 | W64: 2021-22 | X64: 2022-23 | Y64: 2023-24 | Z64: 2024-25 | AA64: 2025-26 | AB64: 2026-27 | AC64: 2027-28 | AD64: 2028-29 | AE64: 2029-30
B80: Total opex | C80: 0 | D80: 0 | E80: 0 | F80: 0 | G80: 0 | H80: 0 | I80: 0 | J80: 0 | K80: 0 | L80: 0 | M80: 0 | N80: 0 | O80: 0 | P80: 0 | Q80: 0 | R80: 0 | S80: 0 | T80: 0 | U80: 0 | V80: 0 | W80: 0 | X80: 0 | Y80: 0 | Z80: 0 | AA80: 0 | AB80: 0 | AC80: 0 | AD80: 0 | AE80: 0

Sheet 2.17 Step Changes
B1: DATA COLLECTION TEMPLATE
B2: Basslink Pty Ltd
B4: 2.17 STEP CHANGES
B6: 2.17.1 - FORECAST OPEX STEP CHANGES
D7: EXPENDITURE
D8: Forecast ($, real June 2025)
B9: Step change | C9: Description | D9: 2023-24 | E9: 2024-25 | F9: 2025-26 | G9: 2026-27 | H9: 2027-28 | I9: 2028-29 | J9: 2029-30
B10: Response Vessel | C10: A contract with a second vessel to aid with repair cable faults | E10: 7653709.81 | F10: 7653709.81 | G10: 7653709.81 | H10: 7653709.81 | I10: 7653709.81 | J10: 7653709.81
C25: TOTAL | D25: 0 | E25: 0 | F25: 0 | G25: 0 | H25: 0 | I25: 0 | J25: 0
C26: Check | F26: OK | G26: OK | H26: OK | I26: OK | J26: OK
B28: 2.17.2 - FORECAST CAPEX STEP CHANGES
D29: EXPENDITURE
D30: Forecast ($, real June 2025)
B31: Step change | C31: Description | D31: 2023-24 | E31: 2024-25 | F31: 2025-26 | G31: 2026-27 | H31: 2027-28 | I31: 2028-29 | J31: 2029-30
C47: TOTAL | D47: 0 | E47: 0 | F47: 0 | G47: 0 | H47: 0 | I47: 0 | J47: 0

Sheet 3.2.3 Provisions
B1: DATA COLLECTION TEMPLATE
B2: Basslink Pty Ltd
B4: 3.2 OPERATING EXPENDITURE
C5: FY Mar 2001 | D5: FY Mar 2002 | E5: FY Mar 2003 | F5: FY Mar 2004 | G5: FY Mar 2005 | H5: FY Mar 2006 | I5: FY Mar 2007 | J5: FY Mar 2008 | K5: FY Mar 2009 | L5: FY Mar 2010 | M5: FY Mar 2011 | N5: FY Mar 2012 | O5: FY Mar 2013 | P5: FY Mar 2014 | Q5: 1/Apr/2014 to 31/Dec/2015 | R5: FY Dec 2016 | S5: FY Dec 2017 | T5: FY Dec 2018 | U5: FY Dec 2019 | V5: FY Dec 2020 | W5: FY Dec 2021 | X5: 1 Jan 22 to 31 Oct 22 | Y5: 1 Nov 22 to 30 Jun 23 | Z5: FY24 | AA5: FY25 | AB5: FY26 | AC5: FY27 | AD5: FY28 | AE5: FY29 | AF5: FY30
B6: 3.2.3 - PROVISIONS
D7: ($, nominal) | Z7: Forecast ($, real June 2025)
C8: 2000-01 | D8: 2001-02 | E8: 2002-03 | F8: 2003-04 | G8: 2004-05 | H8: 2005-06 | I8: 2006-07 | J8: 2007-08 | K8: 2008-09 | L8: 2009-10 | M8: 2010-11 | N8: 2011-12 | O8: 2012-13 | P8: 2013-14 | Q8: 2014-15 | R8: 2015-16 | S8: 2016-17 | T8: 2017-18 | U8: 2018-19 | V8: 2019-20 | W8: 2020-21 | X8: 2021-22 | Y8: 2022-23 | Z8: 2023-24 | AA8: 2024-25 | AB8: 2025-26 | AC8: 2026-27 | AD8: 2027-28 | AE8: 2028-29 | AF8: 2029-30
A9: TOPEX03A | B9: <Provision name> Empolyee Entitlements
B10: <Brief description of provision> includes provisions related to employees
A11: TOPEX0301A | B11: Opening balance (the carrying amount at the beginning of the period) | C11: 0 | D11: =C28 -> -14947 | E11: =D28 -> -119992 | F11: =E28 -> -58758 | G11: =F28 -> -35001 | H11: -37000 | I11: -203000 | J11: -9000 | K11: -92000 | L11: -109000 | M11: -187000 | N11: -418000 | O11: -529000 | P11: -191000 | Q11: -209000 | R11: -128000 | S11: 0 | T11: 0 | U11: 0 | V11: 0 | W11: 0 | X11: 0 | Y11: 0 | Z11: 0 | AA11: 0 | AB11: 0 | AC11: 0 | AD11: 0 | AE11: 0 | AF11: 0
B12: Additional provisions made in the period, including increases to existing provisions
A13: TOPEX0302A | B13: Opex component | C13: 0 | D13: 0 | E13: 0 | F13: 0 | G13: 0 | H13: 0 | I13: -9000 | J13: -83000 | K13: -17000 | L13: -78000 | M13: -231000 | N13: -90000 | O13: 338000 | P13: -18000 | Q13: 81000 | R13: 128000 | S13: 0 | T13: 0 | U13: 0 | V13: 0 | W13: 0 | X13: 0 | Y13: 0 | Z13: 0 | AA13: 0 | AB13: 0 | AC13: 0 | AD13: 0 | AE13: 0 | AF13: 0
A14: TOPEX0303A | B14: Capex component | C14: -14947 | D14: -105045 | E14: 61234 | F14: 23757 | G14: -1999 | H14: -166000 | I14: 203000 | J14: 0 | K14: 0 | L14: 0 | M14: 0 | N14: 0 | O14: 0 | P14: 0 | Q14: 0 | R14: 0 | S14: 0 | T14: 0 | U14: 0 | V14: 0 | W14: 0 | X14: 0 | Y14: 0 | Z14: 0 | AA14: 0 | AB14: 0 | AC14: 0 | AD14: 0 | AE14: 0 | AF14: 0
A15: TOPEX0304A | B15: Other component | N15: -21000
B16: Amounts used (that is, incurred and charged against the provision) during the period
A17: TOPEX0305A | B17: Opex component
A18: TOPEX0306A | B18: Capex component
A19: TOPEX0307A | B19: Other component
B20: Unused amounts reversed during the period
A21: TOPEX0308A | B21: Opex component
A22: TOPEX0309A | B22: Capex component
A23: TOPEX0310A | B23: Other component
B24: The increase during the period in the discounted amount arising from the passage of time and the effect of any change in the discount rate
A25: TOPEX0311A | B25: Opex component
A26: TOPEX0312A | B26: Capex component
A27: TOPEX0313A | B27: Other component
A28: TOPEX0314A | B28: Closing balance (carrying amount at the end of the period) | C28: =SUM(C11,C13:C15,C17:C19,C21:C23,C25:C27) -> -14947 | D28: =SUM(D11,D13:D15,D17:D19,D21:D23,D25:D27) -> -119992 | E28: =SUM(E11,E13:E15,E17:E19,E21:E23,E25:E27) -> -58758 | F28: -35001 | G28: -37000 | H28: -203000 | I28: -9000 | J28: -92000 | K28: -109000 | L28: -187000 | M28: -418000 | N28: -529000 | O28: -191000 | P28: -209000 | Q28: -128000 | R28: 0 | S28: 0 | T28: 0 | U28: 0 | V28: 0 | W28: 0 | X28: 0 | Y28: 0 | Z28: 0 | AA28: 0 | AB28: 0 | AC28: 0 | AD28: 0 | AE28: 0 | AF28: 0
A29: TOPEX03B | B29: <Provision name> Provision for project decommissioning (Please note - Decommissioning costs do not form part of the Regulated Asset Base).
B30: <Brief description of provision>
A31: TOPEX0301B | B31: Opening balance (the carrying amount at the beginning of the period) | C31: 0 | D31: =C48 -> 0 | E31: =D48 -> 0 | F31: =E48 -> 0 | G31: =F48 -> 0 | H31: -3288000 | I31: -3288000 | J31: -4349000 | K31: -4610000 | L31: -4887000 | M31: -5180000 | N31: -5490000 | O31: -14917000 | P31: -21405000 | Q31: -19899000 | R31: -33986000 | S31: =R48 -> -26083000 | T31: -28522000 | U31: -22811000 | V31: -16009000 | W31: -23458000 | X31: =W48 -> -24229000 | Y31: -11517638.58 | Z31: -12122735.41 | AA31: -13050286.65 | AB31: -14046010.63 | AC31: -15119212.3 | AD31: -16274413.17 | AE31: -17519623.24 | AF31: -18856353.18
B32: Additional provisions made in the period, including increases to existing provisions
A33: TOPEX0302B | B33: Opex component | C33: 0 | D33: 0 | E33: 0 | F33: 0 | G33: 0 | H33: 0 | I33: 0 | J33: 0 | K33: 0 | L33: 0 | M33: 0 | N33: 0 | O33: 0 | P33: 0 | Q33: 0 | R33: 0 | S33: 0 | T33: 0 | U33: 0 | V33: 0 | W33: 0 | X33: 0 | Y33: 0 | Z33: 0 | AA33: 0 | AB33: 0 | AC33: 0 | AD33: 0 | AE33: 0 | AF33: 0
A34: TOPEX0303B | B34: Capex component | C34: 0 | D34: 0 | E34: 0 | F34: 0 | G34: -3288000 | H34: 0 | I34: -832000 | J34: 0 | K34: 0 | L34: 0 | M34: 0 | N34: -9097000 | O34: -5752000 | P34: 2238000 | Q34: -12499000 | R34: 8871000 | S34: -1693000 | T34: 6430000 | U34: 7368000 | V34: -6887000 | W34: -33000 | X34: 0 | Y34: 0 | Z34: 0 | AA34: 0 | AB34: 0 | AC34: 0 | AD34: 0 | AE34: 0 | AF34: 0
A35: TOPEX0304B | B35: Other component | C35: 0 | D35: 0 | E35: 0 | F35: 0 | G35: 0 | H35: 0 | I35: 0 | J35: 0 | K35: 0 | L35: 0 | M35: 0 | N35: 0 | O35: 0 | P35: 0 | Q35: 0 | R35: 0 | S35: 0 | T35: 0 | U35: 0 | V35: 0 | W35: 0 | X35: 13238733.95 | Y35: 0 | Z35: 0 | AA35: 0 | AB35: 0 | AC35: 0 | AD35: 0 | AE35: 0 | AF35: 0
B36: Amounts used (that is, incurred and charged against the provision) during the period
A37: TOPEX0305B | B37: Opex component
A38: TOPEX0306B | B38: Capex component
A39: TOPEX0307B | B39: Other component
B40: Unused amounts reversed during the period
A41: TOPEX0308B | B41: Opex component
A42: TOPEX0309B | B42: Capex component
A43: TOPEX0310B | B43: Other component
B44: The increase during the period in the discounted amount arising from the passage of time and the effect of any change in the discount rate
A45: TOPEX0311B | B45: Opex component | D45: 0 | E45: 0 | F45: 0 | G45: 0 | H45: 0 | I45: -229000 | J45: -261000 | K45: -277000 | L45: -293000 | M45: -310000 | N45: -330000 | O45: -736000 | P45: -732000 | Q45: -1588000 | R45: -968000 | S45: -746000 | T45: -719000 | U45: -566000 | V45: -562000 | W45: -738000 | X45: -527372.5275 | Y45: -605096.8331 | Z45: -927551.2404 | AA45: -995723.9767 | AB45: -1073201.665 | AC45: -1155200.878 | AD45: -1245210.063 | AE45: -1336729.942 | AF45: -1440741.444
A46: TOPEX0312B | B46: Capex component | D46: 0 | E46: 0 | F46: 0 | G46: 0 | H46: 0 | I46: 0 | J46: 0 | K46: 0 | L46: 0 | M46: 0 | N46: 0 | O46: 0 | P46: 0 | Q46: 0 | R46: 0 | S46: 0 | T46: 0 | U46: 0 | V46: 0 | W46: 0 | X46: 0 | Y46: 0 | Z46: 0 | AA46: 0 | AB46: 0 | AC46: 0 | AD46: 0 | AE46: 0 | AF46: 0
A47: TOPEX0313B | B47: Other component | D47: 0 | E47: 0 | F47: 0 | G47: 0 | H47: 0 | I47: 0 | J47: 0 | K47: 0 | L47: 0 | M47: 0 | N47: 0 | O47: 0 | P47: 0 | Q47: 0 | R47: 0 | S47: 0 | T47: 0 | U47: 0 | V47: 0 | W47: 0 | X47: 0 | Y47: 0 | Z47: 0 | AA47: 0 | AB47: 0 | AC47: 0 | AD47: 0 | AE47: 0 | AF47: 0
A48: TOPEX0314B | B48: Closing balance (carrying amount at the end of the period) | C48: =SUM(C31,C33:C35,C37:C39,C41:C43,C45:C47) -> 0 | D48: =SUM(D31,D33:D35,D37:D39,D41:D43,D45:D47) -> 0 | E48: =SUM(E31,E33:E35,E37:E39,E41:E43,E45:E47) -> 0 | F48: =SUM(F31,F33:F35,F37:F39,F41:F43,F45:F47) -> 0 | G48: =SUM(G31,G33:G35,G37:G39,G41:G43,G45:G47) -> -3288000 | H48: =SUM(H31,H33:H35,H37:H39,H41:H43,H45:H47) -> -3288000 | I48: =SUM(I31,I33:I35,I37:I39,I41:I43,I45:I47) -> -4349000 | J48: =SUM(J31,J33:J35,J37:J39,J41:J43,J45:J47) -> -4610000 | K48: =SUM(K31,K33:K35,K37:K39,K41:K43,K45:K47) -> -4887000 | L48: =SUM(L31,L33:L35,L37:L39,L41:L43,L45:L47) -> -5180000 | M48: =SUM(M31,M33:M35,M37:M39,M41:M43,M45:M47) -> -5490000 | N48: =SUM(N31,N33:N35,N37:N39,N41:N43,N45:N47) -> -14917000 | O48: =SUM(O31,O33:O35,O37:O39,O41:O43,O45:O47) -> -21405000 | P48: =SUM(P31,P33:P35,P37:P39,P41:P43,P45:P47) -> -19899000 | Q48: =SUM(Q31,Q33:Q35,Q37:Q39,Q41:Q43,Q45:Q47) -> -33986000 | R48: =SUM(R31,R33:R35,R37:R39,R41:R43,R45:R47) -> -26083000 | S48: =SUM(S31,S33:S35,S37:S39,S41:S43,S45:S47) -> -28522000 | T48: =SUM(T31,T33:T35,T37:T39,T41:T43,T45:T47) -> -22811000 | U48: =SUM(U31,U33:U35,U37:U39,U41:U43,U45:U47) -> -16009000 | V48: =SUM(V31,V33:V35,V37:V39,V41:V43,V45:V47) -> -23458000 | W48: =SUM(W31,W33:W35,W37:W39,W41:W43,W45:W47) -> -24229000 | X48: =SUM(X31,X33:X35,X37:X39,X41:X43,X45:X47) -> -11517638.58 | Y48: =SUM(Y31,Y33:Y35,Y37:Y39,Y41:Y43,Y45:Y47) -> -12122735.41 | Z48: =SUM(Z31,Z33:Z35,Z37:Z39,Z41:Z43,Z45:Z47) -> -13050286.65 | AA48: =SUM(AA31,AA33:AA35,AA37:AA39,AA41:AA43,AA45:AA47) -> -14046010.63 | AB48: =SUM(AB31,AB33:AB35,AB37:AB39,AB41:AB43,AB45:AB47) -> -15119212.3 | AC48: =SUM(AC31,AC33:AC35,AC37:AC39,AC41:AC43,AC45:AC47) -> -16274413.17 | AD48: =SUM(AD31,AD33:AD35,AD37:AD39,AD41:AD43,AD45:AD47) -> -17519623.24 | AE48: =SUM(AE31,AE33:AE35,AE37:AE39,AE41:AE43,AE45:AE47) -> -18856353.18 | AF48: =SUM(AF31,AF33:AF35,AF37:AF39,AF41:AF43,AF45:AF47) -> -20297094.62
A49: TOPEX03C | B49: <Provision name>
B50: <Brief description of provision>
A51: TOPEX0301C | B51: Opening balance (the carrying amount at the beginning of the period)
B52: Additional provisions made in the period, including increases to existing provisions
A53: TOPEX0302C | B53: Opex component
A54: TOPEX0303C | B54: Capex component
A55: TOPEX0304C | B55: Other component
B56: Amounts used (that is, incurred and charged against the provision) during the period
A57: TOPEX0305C | B57: Opex component
A58: TOPEX0306C | B58: Capex component
A59: TOPEX0307C | B59: Other component
B60: Unused amounts reversed during the period
A61: TOPEX0308C | B61: Opex component
A62: TOPEX0309C | B62: Capex component
A63: TOPEX0310C | B63: Other component
B64: The increase during the period in the discounted amount arising from the passage of time and the effect of any change in the discount rate
A65: TOPEX0311C | B65: Opex component
A66: TOPEX0312C | B66: Capex component
A67: TOPEX0313C | B67: Other component
A68: TOPEX0314C | B68: Closing balance (carrying amount at the end of the period) | C68: =SUM(C51,C53:C55,C57:C59,C61:C63,C65:C67) -> 0 | D68: =SUM(D51,D53:D55,D57:D59,D61:D63,D65:D67) -> 0 | E68: =SUM(E51,E53:E55,E57:E59,E61:E63,E65:E67) -> 0 | F68: =SUM(F51,F53:F55,F57:F59,F61:F63,F65:F67) -> 0 | G68: =SUM(G51,G53:G55,G57:G59,G61:G63,G65:G67) -> 0 | H68: =SUM(H51,H53:H55,H57:H59,H61:H63,H65:H67) -> 0 | I68: =SUM(I51,I53:I55,I57:I59,I61:I63,I65:I67) -> 0 | J68: =SUM(J51,J53:J55,J57:J59,J61:J63,J65:J67) -> 0 | K68: =SUM(K51,K53:K55,K57:K59,K61:K63,K65:K67) -> 0 | L68: =SUM(L51,L53:L55,L57:L59,L61:L63,L65:L67) -> 0 | M68: =SUM(M51,M53:M55,M57:M59,M61:M63,M65:M67) -> 0 | N68: =SUM(N51,N53:N55,N57:N59,N61:N63,N65:N67) -> 0 | O68: =SUM(O51,O53:O55,O57:O59,O61:O63,O65:O67) -> 0 | P68: =SUM(P51,P53:P55,P57:P59,P61:P63,P65:P67) -> 0 | Q68: =SUM(Q51,Q53:Q55,Q57:Q59,Q61:Q63,Q65:Q67) -> 0 | R68: =SUM(R51,R53:R55,R57:R59,R61:R63,R65:R67) -> 0 | S68: =SUM(S51,S53:S55,S57:S59,S61:S63,S65:S67) -> 0 | T68: =SUM(T51,T53:T55,T57:T59,T61:T63,T65:T67) -> 0 | U68: =SUM(U51,U53:U55,U57:U59,U61:U63,U65:U67) -> 0 | V68: =SUM(V51,V53:V55,V57:V59,V61:V63,V65:V67) -> 0 | W68: =SUM(W51,W53:W55,W57:W59,W61:W63,W65:W67) -> 0 | X68: =SUM(X51,X53:X55,X57:X59,X61:X63,X65:X67) -> 0 | Y68: =SUM(Y51,Y53:Y55,Y57:Y59,Y61:Y63,Y65:Y67) -> 0 | Z68: =SUM(Z51,Z53:Z55,Z57:Z59,Z61:Z63,Z65:Z67) -> 0 | AA68: =SUM(AA51,AA53:AA55,AA57:AA59,AA61:AA63,AA65:AA67) -> 0 | AB68: =SUM(AB51,AB53:AB55,AB57:AB59,AB61:AB63,AB65:AB67) -> 0 | AC68: =SUM(AC51,AC53:AC55,AC57:AC59,AC61:AC63,AC65:AC67) -> 0 | AD68: =SUM(AD51,AD53:AD55,AD57:AD59,AD61:AD63,AD65:AD67) -> 0 | AE68: =SUM(AE51,AE53:AE55,AE57:AE59,AE61:AE63,AE65:AE67) -> 0 | AF68: =SUM(AF51,AF53:AF55,AF57:AF59,AF61:AF63,AF65:AF67) -> 0
A69: TOPEX03D | B69: <Provision name>
B70: <Brief description of provision>
A71: TOPEX0301D | B71: Opening balance (the carrying amount at the beginning of the period)
B72: Additional provisions made in the period, including increases to existing provisions
A73: TOPEX0302D | B73: Opex component
A74: TOPEX0303D | B74: Capex component
A75: TOPEX0304D | B75: Other component
B76: Amounts used (that is, incurred and charged against the provision) during the period
A77: TOPEX0305D | B77: Opex component
A78: TOPEX0306D | B78: Capex component
A79: TOPEX0307D | B79: Other component
B80: Unused amounts reversed during the period
A81: TOPEX0308D | B81: Opex component
A82: TOPEX0309D | B82: Capex component
A83: TOPEX0310D | B83: Other component
B84: The increase during the period in the discounted amount arising from the passage of time and the effect of any change in the discount rate
A85: TOPEX0311D | B85: Opex component
A86: TOPEX0312D | B86: Capex component
A87: TOPEX0313D | B87: Other component
A88: TOPEX0314D | B88: Closing balance (carrying amount at the end of the period)
A89: TOPEX03E | B89: <Provision name>
B90: <Brief description of provision>
A91: TOPEX0301E | B91: Opening balance (the carrying amount at the beginning of the period)
B92: Additional provisions made in the period, including increases to existing provisions
A93: TOPEX0302E | B93: Opex component
A94: TOPEX0303E | B94: Capex component
A95: TOPEX0304E | B95: Other component
B96: Amounts used (that is, incurred and charged against the provision) during the period
A97: TOPEX0305E | B97: Opex component
A98: TOPEX0306E | B98: Capex component
A99: TOPEX0307E | B99: Other component
B100: Unused amounts reversed during the period
A101: TOPEX0308E | B101: Opex component
A102: TOPEX0309E | B102: Capex component
A103: TOPEX0310E | B103: Other component
B104: The increase during the period in the discounted amount arising from the passage of time and the effect of any change in the discount rate
A105: TOPEX0311E | B105: Opex component
A106: TOPEX0312E | B106: Capex component
A107: TOPEX0313E | B107: Other component
A108: TOPEX0314E | B108: Closing balance (carrying amount at the end of the period)
A109: TOPEX03F | B109: <Provision name>
B110: <Brief description of provision>
A111: TOPEX0301F | B111: Opening balance (the carrying amount at the beginning of the period)
B112: Additional provisions made in the period, including increases to existing provisions
A113: TOPEX0302F | B113: Opex component
A114: TOPEX0303F | B114: Capex component
A115: TOPEX0304F | B115: Other component
B116: Amounts used (that is, incurred and charged against the provision) during the period
A117: TOPEX0305F | B117: Opex component
A118: TOPEX0306F | B118: Capex component
A119: TOPEX0307F | B119: Other component
B120: Unused amounts reversed during the period
A121: TOPEX0308F | B121: Opex component
A122: TOPEX0309F | B122: Capex component
A123: TOPEX0310F | B123: Other component
B124: The increase during the period in the discounted amount arising from the passage of time and the effect of any change in the discount rate
A125: TOPEX0311F | B125: Opex component
A126: TOPEX0312F | B126: Capex component
A127: TOPEX0313F | B127: Other component
A128: TOPEX0314F | B128: Closing balance (carrying amount at the end of the period)
A129: TOPEX03G | B129: <Provision name>
B130: <Brief description of provision>
A131: TOPEX0301G | B131: Opening balance (the carrying amount at the beginning of the period)
B132: Additional provisions made in the period, including increases to existing provisions
A133: TOPEX0302G | B133: Opex component
A134: TOPEX0303G | B134: Capex component
A135: TOPEX0304G | B135: Other component
B136: Amounts used (that is, incurred and charged against the provision) during the period
A137: TOPEX0305G | B137: Opex component
A138: TOPEX0306G | B138: Capex component
A139: TOPEX0307G | B139: Other component
B140: Unused amounts reversed during the period
A141: TOPEX0308G | B141: Opex component
A142: TOPEX0309G | B142: Capex component
A143: TOPEX0310G | B143: Other component
B144: The increase during the period in the discounted amount arising from the passage of time and the effect of any change in the discount rate
A145: TOPEX0311G | B145: Opex component
A146: TOPEX0312G | B146: Capex component
A147: TOPEX0313G | B147: Other component
A148: TOPEX0314G | B148: Closing balance (carrying amount at the end of the period)
A149: TOPEX03H | B149: <Provision name>
B150: <Brief description of provision>
A151: TOPEX0301H | B151: Opening balance (the carrying amount at the beginning of the period)
B152: Additional provisions made in the period, including increases to existing provisions
A153: TOPEX0302H | B153: Opex component
A154: TOPEX0303H | B154: Capex component
A155: TOPEX0304H | B155: Other component
B156: Amounts used (that is, incurred and charged against the provision) during the period
A157: TOPEX0305H | B157: Opex component
A158: TOPEX0306H | B158: Capex component
A159: TOPEX0307H | B159: Other component
B160: Unused amounts reversed during the period
A161: TOPEX0308H | B161: Opex component
A162: TOPEX0309H | B162: Capex component
A163: TOPEX0310H | B163: Other component
B164: The increase during the period in the discounted amount arising from the passage of time and the effect of any change in the discount rate
A165: TOPEX0311H | B165: Opex component
A166: TOPEX0312H | B166: Capex component
A167: TOPEX0313H | B167: Other component
A168: TOPEX0314H | B168: Closing balance (carrying amount at the end of the period)
A169: TOPEX03I | B169: <Provision name>
B170: <Brief description of provision>
A171: TOPEX0301I | B171: Opening balance (the carrying amount at the beginning of the period)
B172: Additional provisions made in the period, including increases to existing provisions
A173: TOPEX0302I | B173: Opex component
A174: TOPEX0303I | B174: Capex component
A175: TOPEX0304I | B175: Other component
B176: Amounts used (that is, incurred and charged against the provision) during the period
A177: TOPEX0305I | B177: Opex component
A178: TOPEX0306I | B178: Capex component
A179: TOPEX0307I | B179: Other component
B180: Unused amounts reversed during the period
A181: TOPEX0308I | B181: Opex component
A182: TOPEX0309I | B182: Capex component
A183: TOPEX0310I | B183: Other component
B184: The increase during the period in the discounted amount arising from the passage of time and the effect of any change in the discount rate
A185: TOPEX0311I | B185: Opex component
A186: TOPEX0312I | B186: Capex component
A187: TOPEX0313I | B187: Other component
A188: TOPEX0314I | B188: Closing balance (carrying amount at the end of the period)
A189: TOPEX03J | B189: Provision name
B190: <Brief description of provision>
A191: TOPEX0301J | B191: Opening balance (the carrying amount at the beginning of the period)
B192: Additional provisions made in the period, including increases to existing provisions
A193: TOPEX0302J | B193: Opex component
A194: TOPEX0303J | B194: Capex component
A195: TOPEX0304J | B195: Other component
B196: Amounts used (that is, incurred and charged against the provision) during the period
A197: TOPEX0305J | B197: Opex component
A198: TOPEX0306J | B198: Capex component
A199: TOPEX0307J | B199: Other component
B200: Unused amounts reversed during the period
A201: TOPEX0308J | B201: Opex component
... 167 more rows

Sheet 7.1 Policies and Procedures
B1: DATA COLLECTION TEMPLATE
B2: Basslink Pty Ltd
B4: 7.1 PLANS, POLICIES, PROCEDURES AND STRATEGIES
B6: Instructions
B7: Basslink must list and provide a brief description of key internal plans, policies, procedures or strategies that are used by it to plan and conduct its day to day operations and that have been relied upon in the development of its regulatory proposal. Basslink must identify any internal plans, policies, procedures and strategies that have changed in the current regulatory control period or that are expected to change before the next regulatory control period where the change has been identified as a step change.
B11: 7.1.1 - PLANS, POLICIES, PROCEDURES AND STRATEGIES
C12: Brief description | D12: Relevance to regulatory proposal | E12: Expenditure impact
C13: Description of the plan, policy, procedure or strategy. | D13: Identify the element of the proposal/supporting documents that the policy, plan, procedure or strategy is relevant to e.g. replacement capex, capacity utilisation thresholds, opex | E13: Is this policy, plan or procedure identified in the response to section 4 'Step Changes' of the notice (yes or no)?
B14: Corporate
B18: Governance framework
B36: Accounting policies, procedures and methodologies (including a capitalisation policy, depreciation policy and an approved expenditure allocation methodology)
B37: APA CAM
B38: ASIC Audit Requirement
B40: Asset management plan or equivalent documentation
B41: Asset Management Policies
B42: Asset Management Planning Documents
B44: Asset Management Strategies
B49: Asset Management Plans
B73: Capital expenditure policies and procedures (including capex approval policies and procedures and replacement policy)
B78: Internal standards for network planning, design, maintenance and operation
B158: Procurement and contracting out policies
B163: Information technology policies or strategies
B200: Demand management policies or strategies
B204: Self insurance guidelines or policy
B209: Land and easement acquisition polices
B214: Asset security plans and policies
B225: Disaster recovery policy
B226: <insert relevant policy, plan, strategy etc>

Sheet 7.2 Contingent projects
B1: DATA COLLECTION TEMPLATE
B2: Basslink Pty Ltd
B4: 7.2 CONTINGENT PROJECTS
B7: 7.2.1 - PROPOSED CONTINGENT PROJECTS FOR THE FORTHCOMING REGULATORY CONTROL PERIOD
B8: Proposed contingent project name | C8: Proposed contingent capital expenditure ($, nominal) | D8: Proposed trigger events | E8: Proposed MAR for 2025-26 ($, nominal) | F8: 5 per cent of the 2025-26 ($, nominal) MAR
B9: No Proposed Contingent Projects | F9: 0
E10: 0 | F10: 0
E11: 0 | F11: 0
E12: 0 | F12: 0
E13: 0 | F13: 0
E14: 0 | F14: 0
E15: 0 | F15: 0
E16: 0 | F16: 0
E17: 0 | F17: 0
E18: 0 | F18: 0
E19: 0 | F19: 0
E20: 0 | F20: 0
E21: 0 | F21: 0
E22: 0 | F22: 0
E23: 0 | F23: 0
E24: 0 | F24: 0
E25: 0 | F25: 0
E26: 0 | F26: 0
E27: 0 | F27: 0
E28: 0 | F28: 0

Sheet 7.3 Obligations
B1: DATA COLLECTION TEMPLATE
B2: Basslink Pty Ltd
B4: 7.3 OBLIGATIONS, REQUIREMENTS & STANDARDS
B6: Instructions
B7: Outline those obligations and requirements that Basslink identifies as having a material impact on expenditure requirements.
B9: 7.3.1 - OBLIGATIONS OR REQUIREMENTS
C10: Brief description | D10: Relevance to regulatory proposal | E10: Expenditure impact
C11: Description of relevant obligations or requirements within the instrument (e.g. safety obligations, reliability targets) | D11: Identify what element of the proposal/supporting documents the obligation or requirement is relevant to e.g. replacement capex, capacity utilisation thresholds, opex | E11: Is the obligation or requirement identified in the response to section 4 'Step Changes' of the notice (yes or no)?
B12: Legislation
B224: Licences
B229: Rules
B234: Orders
B238: Codes
B254: Guidelines
B293: Default agreements
B298: Other

Sheet 7.4 Shared Assets
B1: DATA COLLECTION TEMPLATE
B2: Basslink Pty Ltd
B4: 7.4 SHARED ASSETS
B6: 7.4.1 - TOTAL UNREGULATED REVENUE EARNED WITH SHARED ASSETS
B7: Name of shared asset unregulated service | C7: Description of shared assets used to provide the service | D7: Shared asset unregulated revenue ($, nominal) | G7: ($, nominal) | AC7: Forecast ($, real June 2025) | AJ7: Total 2025-26 to 2029-30
D8: 2015-16 | E8: 2016-17 | F8: 2017-18 | G8: 2001-02 | H8: 2002-03 | I8: 2003-04 | J8: 2004-05 | K8: 2005-06 | L8: 2006-07 | M8: 2007-08 | N8: 2008-09 | O8: 2009-10 | P8: 2010-11 | Q8: 2011-12 | R8: 2012-13 | S8: 2013-14 | T8: 2014-15 | U8: 2015-16 | V8: 2016-17 | W8: 2017-18 | X8: 2018-19 | Y8: 2019-20 | Z8: 2020-21 | AA8: 2021-22 | AB8: 2022-23 | AC8: 2023-24 | AD8: 2024-25 | AE8: 2025-26 | AF8: 2026-27 | AG8: 2027-28 | AH8: 2028-29 | AI8: 2029-30
B9: Basslink Telecoms | C9: doesn't meet materiality threshold of 1% MAR | AJ9: 0
AJ10: 0
AJ11: 0
AJ12: 0
AJ13: 0
AJ14: 0
AJ15: 0
AJ16: 0
AJ17: 0
AJ18: 0
AJ19: 0
AJ20: 0
AJ21: 0
AJ22: 0
AJ23: 0
B25: 7.4.2 - SHARED ASSET UNREGULATED SERVICES - APPORTIONMENT METHODOLOGY
B26: Name of shared asset unregulated service for which revenues were apportioned | C26: Apportionment methodology
B27: Basslink Telecoms | C27: doesn't meet materiality threshold of 1% MAR

Sheet 8.2 Capex
B1: DATA COLLECTION TEMPLATE
B2: Basslink Pty Ltd
B4: 8.2 - CAPEX
B6: 8.2.7 - IMMEDIATE EXPENSING OF CAPEX
B7: ESTIMATED - AS COMMISSIONED
C8: ($, nominal) | Y8: Forecast ($, real June 2025)
C9: 2001-02 | D9: 2002-03 | E9: 2003-04 | F9: 2004-05 | G9: 2005-06 | H9: 2006-07 | I9: 2007-08 | J9: 2008-09 | K9: 2009-10 | L9: 2010-11 | M9: 2011-12 | N9: 2012-13 | O9: 2013-14 | P9: 2014-15 | Q9: 2015-16 | R9: 2016-17 | S9: 2017-18 | T9: 2018-19 | U9: 2019-20 | V9: 2020-21 | W9: 2021-22 | X9: 2022-23 | Y9: 2023-24 | Z9: 2024-25
B10: None
B60: Total | C60: 0 | W60: 0 | X60: 0 | Y60: 0 | Z60: 0
